bitfinex/quotes_BTCUSD_20251031
["timestamp","ask_amount","ask_price","bid_price","bid_amount"]
[1761916479541,0.00036521,110230.0,110220.0,0.68999135]
[1761916480391,0.00036521,110230.0,110220.0,1.11447719]
[1761916480826,0.00036521,110230.0,110220.0,0.68999135]
[1761916484721,0.00036521,110230.0,110220.0,0.15894868]
[1761916485140,0.00036521,110230.0,110220.0,0.18392868]
[1761916487216,0.00036521,110230.0,110220.0,0.60841452]
[1761916491063,0.00036521,110230.0,110220.0,0.18392868]
[1761916491292,0.00036521,110230.0,110220.0,0.60841452]
[1761916491504,0.00036521,110230.0,110220.0,0.68898928]
[1761916494999,0.00036521,110230.0,110220.0,0.23952344]
[1761916495212,2.55185821,110230.0,110220.0,0.004]
[1761916495918,2.36692054,110230.0,110220.0,0.001]
[1761916496123,2.4939277,110230.0,110220.0,0.001]
[1761916496346,2.0,110220.0,110210.0,0.13910021]
[1761916496572,2.0,110220.0,110210.0,0.21655943]
[1761916496794,2.0,110220.0,110210.0,0.22862943]
[1761916497787,2.0,110220.0,110210.0,0.67809527]
[1761916500291,2.0,110230.0,110220.0,0.12701868]
[1761916500721,2.42448584,110230.0,110220.0,0.12701868]
[1761916500983,2.0,110230.0,110220.0,0.15491868]
[1761916501218,2.0,110230.0,110220.0,0.17989868]
[1761916501456,2.0,110230.0,110220.0,1.02887036]
[1761916501656,0.02846338,110240.0,110230.0,0.17988716]
[1761916501657,0.01377665,110240.0,110230.0,0.17988716]
[1761916501882,0.01377665,110240.0,110230.0,0.603324]
[1761916502097,0.14077229,110240.0,110230.0,0.0279]
[1761916502316,0.01377665,110240.0,110230.0,0.17888716]
[1761916502531,0.01593665,110240.0,110230.0,0.17688716]
[1761916502963,0.01693665,110240.0,110230.0,0.17688716]
[1761916503207,0.14393229,110240.0,110230.0,0.15190716]
[1761916503700,0.14293229,110240.0,110230.0,0.15190716]
[1761916504153,0.01593665,110240.0,110230.0,0.22595333]
[1761916504370,0.01593665,110240.0,110230.0,0.15190716]
[1761916505010,0.14293229,110240.0,110230.0,0.15190716]
[1761916505470,0.01593665,110240.0,110230.0,0.15190716]
[1761916505707,0.35593665,110240.0,110230.0,0.15190716]
[1761916507496,0.35399729,110240.0,110230.0,0.601373]
[1761916507717,0.01399729,110240.0,110230.0,0.601373]
[1761916507939,0.35399729,110240.0,110230.0,0.601373]
[1761916508164,0.01399729,110240.0,110230.0,0.65103526]
[1761916509472,0.01399729,110240.0,110230.0,0.65403526]
[1761916509679,0.01399729,110240.0,110230.0,0.65503526]
[1761916510544,2.46697261,110260.0,110250.0,0.14281412]
[1761916510989,2.48335989,110260.0,110250.0,0.01583]
[1761916511205,2.48335989,110260.0,110250.0,0.06043615]
[1761916511430,2.48335989,110260.0,110240.0,0.16404564]
[1761916511666,2.00216,110250.0,110240.0,0.60436148]
[1761916511883,0.49568359,110260.0,110240.0,0.58853148]
[1761916512105,2.49568359,110260.0,110250.0,0.15488412]
[1761916512326,2.92132943,110260.0,110250.0,0.15488412]
[1761916512537,2.92232943,110260.0,110250.0,0.0279]
[1761916512750,2.0,110250.0,110240.0,0.58853148]
[1761916513009,2.0,110250.0,110240.0,0.24267992]
[1761916513218,0.12914412,110250.0,110240.0,0.17987564]
[1761916513687,0.92132943,110260.0,110250.0,0.12698412]
[1761916513688,0.36771098,110260.0,110250.0,0.12698412]
[1761916513896,0.36771098,110260.0,110250.0,0.60360996]
[1761916514334,0.3544837,110260.0,110250.0,0.60360996]
[1761916514728,0.3534837,110260.0,110250.0,0.60360996]
[1761916514948,0.3534837,110260.0,110250.0,0.69342897]
[1761916515195,0.3534837,110260.0,110250.0,0.69442897]
[1761916515421,0.3534837,110260.0,110250.0,0.60460996]
[1761916516248,0.35392487,110260.0,110250.0,0.60460996]
[1761916517565,0.35392487,110260.0,110250.0,0.18012412]
[1761916517785,0.35392487,110260.0,110250.0,0.60460996]
[1761916518901,0.48305748,110260.0,110250.0,0.001]
[1761916519122,2.48521748,110260.0,110250.0,0.001]
[1761916519336,2.90970332,110260.0,110250.0,0.001]
[1761916519805,2.48521748,110260.0,110250.0,0.001]
[1761916520017,2.90970332,110260.0,110250.0,0.001]
[1761916520227,2.35392487,110260.0,110250.0,0.60503996]
[1761916521318,2.35392487,110260.0,110250.0,0.18055412]
[1761916521319,0.35392487,110260.0,110250.0,0.18055412]
[1761916521529,0.35392487,110260.0,110250.0,0.67945052]
[1761916521745,0.01392487,110260.0,110250.0,0.67945052]
[1761916522634,0.01392487,110260.0,110250.0,0.15631412]
[1761916522635,0.14305748,110260.0,110250.0,0.15631412]
[1761916523662,2.14305748,110260.0,110250.0,0.001]
[1761916523899,2.56970332,110260.0,110250.0,0.001]
[1761916524561,2.0,110250.0,110240.0,0.13906341]
[1761916524771,2.0,110250.0,110240.0,0.16330341]
[1761916525014,2.00022061,110250.0,110240.0,0.25348725]
[1761916525222,0.00022061,110250.0,110240.0,0.25348725]
[1761916525638,0.01444754,110250.0,110240.0,0.25348725]
[1761916526337,0.01444754,110250.0,110240.0,0.67797309]
[1761916526764,0.01444754,110250.0,110240.0,0.67897309]
[1761916527199,0.15566292,110250.0,110240.0,0.67897309]
[1761916527850,0.0286788,110250.0,110240.0,0.67897309]
[1761916528280,0.01444754,110250.0,110240.0,0.67897309]
[1761916528493,0.00022061,110250.0,110240.0,0.67897309]
[1761916530156,0.12720473,110250.0,110240.0,0.67897309]
[1761916530803,0.00022061,110250.0,110240.0,0.67897309]
[1761916533552,0.12936473,110250.0,110240.0,0.10325384]
[1761916533770,0.00238061,110250.0,110240.0,0.15526564]
[1761916534202,0.00238061,110250.0,110240.0,0.17893564]
[1761916534634,0.00022061,110250.0,110240.0,0.17893564]
[1761916535293,0.12720473,110250.0,110240.0,0.17893564]
[1761916535509,0.12936473,110250.0,110240.0,0.15526564]
[1761916536159,0.13152473,110250.0,110240.0,0.001]
[1761916536598,0.12936473,110250.0,110240.0,0.001]
[1761916537701,0.13152473,110250.0,110240.0,0.001]
[1761916538171,2.13152473,110250.0,110240.0,0.001]
[1761916538832,2.56134374,110250.0,110240.0,0.001]
[1761916539494,2.0,110230.0,110220.0,0.17183144]
[1761916539979,2.0,110230.0,110220.0,0.18760144]
[1761916540418,2.12700716,110230.0,110220.0,0.18760144]
[1761916540634,0.12700716,110230.0,110220.0,0.18760144]
[1761916541053,0.12700716,110230.0,110220.0,0.06058276]
[1761916541266,0.12700716,110230.0,110220.0,0.12386461]
[1761916541496,0.12700716,110230.0,110220.0,0.25088329]
[1761916541708,2.0,110230.0,110220.0,0.25188329]
[1761916541924,2.0,110230.0,110220.0,0.25488329]
[1761916544291,2.12916716,110230.0,110220.0,0.25488329]
[1761916544545,0.12916716,110230.0,110220.0,0.23121329]
[1761916544757,0.12916716,110230.0,110220.0,0.16793144]
[1761916544964,0.12916716,110230.0,110220.0,0.14009144]
[1761916545174,0.12916716,110230.0,110220.0,0.15604144]
[1761916545567,2.63132716,110230.0,110220.0,0.004]
[1761916545786,2.13132716,110230.0,110220.0,0.001]
[1761916546643,2.12916716,110230.0,110220.0,0.001]
[1761916549220,2.13132716,110230.0,110220.0,0.001]
[1761916550404,0.12701868,110220.0,110210.0,0.14784379]
[1761916550601,0.12917868,110220.0,110210.0,0.16393834]
[1761916551010,0.12917868,110220.0,110210.0,0.02783455]
[1761916551581,0.12917868,110220.0,110210.0,0.00114455]
[1761916551778,2.12917868,110220.0,110210.0,0.00114455]
[1761916552636,2.12917868,110220.0,110210.0,0.14412476]
[1761916553283,2.00216,110220.0,110210.0,0.14412476]
[1761916553492,2.12917868,110220.0,110210.0,0.14412476]
[1761916553700,2.12917868,110220.0,110210.0,0.00114455]
[1761916554820,3.40994153,110220.0,110210.0,0.00114455]
[1761916555025,3.47355537,110220.0,110210.0,0.00114455]
[1761916555245,3.04916345,110220.0,110210.0,0.00114455]
[1761916555693,3.50083817,110220.0,110210.0,0.00114455]
[1761916556141,3.50183817,110220.0,110210.0,0.00114455]
[1761916556589,3.50183817,110220.0,110210.0,0.00014455]
[1761916557044,3.57755642,110220.0,110210.0,0.00014455]
[1761916557252,3.60929528,110220.0,110210.0,0.00014455]
[1761916557468,3.62477163,110220.0,110210.0,0.00014455]
[1761916557678,3.63077163,110220.0,110210.0,0.00014455]
[1761916557891,3.62334005,110220.0,110210.0,1e-08]
[1761916558179,3.64231424,110220.0,110210.0,1e-08]
[1761916558381,4.07515825,110220.0,110210.0,1e-08]
[1761916558771,4.08939669,110220.0,110210.0,1e-08]
[1761916559018,0.34,110160.0,110150.0,0.01215]
[1761916559227,0.46924787,110160.0,110150.0,0.05517727]
[1761916559446,0.46924787,110160.0,110150.0,0.07791727]
[1761916559447,0.34216,110160.0,110150.0,0.07791727]
[1761916559654,0.34216,110160.0,110150.0,0.20501667]
[1761916559866,0.46924787,110160.0,110150.0,0.02858214]
[1761916560075,0.34216,110160.0,110150.0,0.15568154]
[1761916560282,0.34,110160.0,110150.0,0.17842154]
[1761916560493,0.35375354,110160.0,110150.0,0.19657859]
[1761916560755,0.01375354,110160.0,110150.0,0.19757859]
[1761916560966,0.34,110170.0,110160.0,0.12708787]
[1761916561185,0.34,110170.0,110160.0,0.16197787]
[1761916561395,0.01377036,110180.0,110170.0,0.12707633]
[1761916561604,0.14083516,110180.0,110170.0,0.15517633]
[1761916561816,0.1292248,110180.0,110170.0,0.0281]
[1761916562239,3.05361672,110180.0,110170.0,0.0281]
[1761916562476,2.55361672,110180.0,110170.0,0.0281]
[1761916562705,2.55361672,110180.0,110160.0,0.16197787]
[1761916562911,0.00216,110170.0,110160.0,0.15518787]
[1761916563123,2.0,110170.0,110160.0,0.15618787]
[1761916563329,2.0,110170.0,110160.0,0.16697787]
[1761916563543,2.0,110170.0,110160.0,0.18192787]
[1761916563751,2.0,110170.0,110160.0,0.21100166]
[1761916563963,2.0,110170.0,110160.0,0.21500166]
[1761916564388,2.0,110170.0,110160.0,0.21200166]
[1761916564815,2.0,110170.0,110160.0,0.21800166]
[1761916565248,2.55362825,110170.0,110160.0,0.0351]
[1761916565464,2.12923633,110170.0,110160.0,0.16218787]
[1761916565681,2.55362825,110170.0,110160.0,0.0351]
[1761916566345,2.55362825,110170.0,110160.0,0.16218787]
[1761916566568,2.98560726,110170.0,110160.0,0.007]
[1761916567037,2.98560726,110170.0,110160.0,0.17277787]
[1761916567038,2.0,110170.0,110160.0,0.17277787]
[1761916569401,2.0,110170.0,110160.0,0.19093328]
[1761916569626,2.0,110170.0,110160.0,0.17277787]
[1761916570958,2.0,110170.0,110160.0,0.18492787]
[1761916571381,0.00216,110170.0,110160.0,0.16218787]
[1761916571595,2.55362825,110170.0,110160.0,0.007]
[1761916571780,2.55578825,110170.0,110160.0,0.007]
[1761916573065,2.64560726,110170.0,110160.0,0.007]
[1761916573266,2.22121534,110170.0,110160.0,0.007]
[1761916573479,2.64128726,110170.0,110160.0,0.007]
[1761916573679,2.64560726,110170.0,110160.0,0.007]
[1761916574545,2.98560726,110170.0,110160.0,0.007]
[1761916577632,2.79296275,110170.0,110160.0,0.007]
[1761916577914,2.92003908,110170.0,110160.0,0.007]
[1761916579059,0.12708787,110160.0,110150.0,0.00048214]
[1761916579284,3.00444254,110160.0,110150.0,0.00048214]
[1761916579507,2.58005062,110160.0,110150.0,0.00048214]
[1761916579986,3.00444254,110160.0,110150.0,0.00048214]
[1761916580442,3.00444254,110160.0,110150.0,0.00248214]
[1761916582092,3.00444254,110160.0,110150.0,0.00048214]
[1761916582594,3.00544254,110160.0,110150.0,0.00048214]
[1761916584036,2.58105062,110160.0,110150.0,0.00048214]
[1761916585873,2.57889062,110160.0,110150.0,0.00048214]
[1761916586300,2.58105062,110160.0,110150.0,0.00048214]
[1761916589156,3.00544254,110160.0,110150.0,0.00048214]
[1761916590454,2.1566587,110160.0,110150.0,0.00048214]
[1761916590675,2.57889062,110160.0,110150.0,0.00048214]
[1761916590890,2.58105062,110160.0,110150.0,0.00048214]
[1761916592200,0.001,110160.0,110150.0,0.17771154]
[1761916592422,0.001,110160.0,110150.0,0.26997795]
[1761916592642,0.001,110160.0,110150.0,0.2518209]
[1761916593316,0.001,110160.0,110150.0,0.2538209]
[1761916593755,0.00316,110160.0,110150.0,0.15651154]
[1761916594395,0.00316,110160.0,110150.0,0.17971154]
[1761916594396,0.00216,110160.0,110150.0,0.17971154]
[1761916594830,0.00216,110160.0,110150.0,0.15651154]
[1761916595272,2.00216,110160.0,110150.0,0.17971154]
[1761916595483,0.42730855,110160.0,110150.0,0.15651154]
[1761916595907,0.42730855,110160.0,110150.0,0.17971154]
[1761916597817,0.55439642,110160.0,110150.0,0.02941214]
[1761916598022,2.97954497,110160.0,110150.0,0.00248214]
[1761916600095,3.07152398,110160.0,110150.0,0.00248214]
[1761916600940,3.41152398,110160.0,110150.0,0.00248214]
[1761916601899,3.41152398,110160.0,110150.0,0.00048214]
[1761916602128,3.41252398,110160.0,110150.0,0.00048214]
[1761916603487,3.41352398,110160.0,110150.0,0.00048214]
[1761916603706,3.41252398,110160.0,110150.0,0.00048214]
[1761916604086,3.41352398,110160.0,110150.0,0.00048214]
[1761916604299,3.41252398,110160.0,110150.0,0.00048214]
[1761916604508,3.83767253,110160.0,110150.0,0.00048214]
[1761916604716,3.85718564,110160.0,110150.0,0.00048214]
[1761916605577,3.8856172,110160.0,110150.0,0.00048214]
[1761916606362,3.86610409,110160.0,110150.0,0.00048214]
[1761916607209,3.90228637,110160.0,110150.0,0.00048214]
[1761916607431,3.92179801,110160.0,110150.0,0.00048214]
[1761916608170,3.88561573,110160.0,110150.0,0.00048214]
[1761916608373,3.92179801,110160.0,110150.0,0.00048214]
[1761916608821,3.49664946,110160.0,110150.0,0.00048214]
[1761916609036,3.43203562,110160.0,110150.0,0.00048214]
[1761916609247,3.41036398,110160.0,110150.0,0.00048214]
[1761916609479,2.98521543,110160.0,110150.0,0.00048214]
[1761916609773,2.98521543,110160.0,110150.0,0.02752214]
[1761916609991,2.98521543,110160.0,110150.0,0.05031214]
[1761916610177,2.64521543,110160.0,110150.0,0.02752214]
[1761916610804,2.98521543,110160.0,110150.0,0.02752214]
[1761916611040,2.98421543,110160.0,110150.0,0.02952214]
[1761916611671,3.83667253,110160.0,110150.0,0.00248214]
[1761916611878,3.41252398,110160.0,110150.0,0.00248214]
[1761916612520,3.42676609,110160.0,110150.0,0.00248214]
[1761916613194,4.37118445,110160.0,110150.0,0.00048214]
[1761916613403,4.39446594,110160.0,110150.0,0.00048214]
[1761916614043,3.96831739,110160.0,110150.0,0.00048214]
[1761916614276,3.97131739,110160.0,110150.0,0.00048214]
[1761916614498,3.9490359,110160.0,110150.0,0.00048214]
[1761916614719,3.9450359,110160.0,110150.0,0.00048214]
[1761916614932,3.9470359,110160.0,110150.0,0.00048214]
[1761916615142,3.9520359,110160.0,110150.0,0.00048214]
[1761916615352,3.64341811,110160.0,110150.0,0.00048214]
[1761916615597,3.63341812,110160.0,110150.0,0.00048214]
[1761916615783,3.12257263,110160.0,110150.0,0.00048214]
[1761916616288,3.63341812,110160.0,110150.0,0.00048214]
[1761916619652,3.64766003,110160.0,110150.0,0.00048214]
[1761916621267,3.09963226,110160.0,110150.0,0.00048214]
[1761916621507,3.08012483,110160.0,110150.0,0.00048214]
[1761916622164,3.07812483,110160.0,110150.0,0.00048214]
[1761916622372,3.07912483,110160.0,110150.0,0.00048214]
[1761916622579,3.08012483,110160.0,110150.0,0.00048214]
[1761916622783,3.07412483,110160.0,110150.0,0.00048214]
[1761916623218,3.07512483,110160.0,110150.0,0.00048214]
[1761916624578,2.73512483,110160.0,110150.0,0.00048214]
[1761916624808,3.07512483,110160.0,110150.0,0.00048214]
[1761916627944,3.64264017,110160.0,110150.0,0.00048214]
[1761916632130,3.13079468,110160.0,110150.0,0.00048214]
[1761916633002,3.11130711,110160.0,110150.0,0.00048214]
[1761916633445,3.6142193,110160.0,110150.0,0.00048214]
[1761916633881,3.6152193,110160.0,110150.0,0.00048214]
[1761916634093,3.13180537,110160.0,110150.0,0.00048214]
[1761916634786,3.13080537,110160.0,110150.0,0.00048214]
[1761916635218,3.13180537,110160.0,110150.0,0.00048214]
[1761916635437,3.6142193,110160.0,110150.0,0.00048214]
[1761916635681,3.6152193,110160.0,110150.0,0.00048214]
[1761916636136,3.60097739,110160.0,110150.0,0.00048214]
[1761916636366,3.62840895,110160.0,110150.0,0.00048214]
[1761916637308,3.93779039,110160.0,110150.0,0.00048214]
[1761916638640,3.95471669,110160.0,110150.0,0.00048214]
[1761916639316,3.9789582,110160.0,110150.0,0.00048214]
[1761916639722,3.96895821,110160.0,110150.0,0.00048214]
[1761916641687,3.96782056,110160.0,110150.0,0.00048214]
[1761916642125,3.97782055,110160.0,110150.0,0.00048214]
[1761916643496,3.94163827,110160.0,110150.0,0.00048214]
[1761916644954,3.97782055,110160.0,110150.0,0.00048214]
[1761916646218,3.940389,110160.0,110150.0,0.00048214]
[1761916649572,3.5149859,110160.0,110150.0,0.00048214]
[1761916651290,3.940389,110160.0,110150.0,0.00048214]
[1761916651726,3.73527268,110160.0,110150.0,0.00048214]
[1761916651941,3.43695745,110160.0,110150.0,0.00048214]
[1761916652151,3.86236055,110160.0,110150.0,0.00048214]
[1761916653423,3.84811903,110160.0,110150.0,0.00048214]
[1761916654955,3.87555059,110160.0,110150.0,0.00048214]
[1761916656821,3.88979228,110160.0,110150.0,0.00048214]
[1761916657566,3.46441756,110160.0,110150.0,0.00048214]
[1761916658687,3.01156871,110160.0,110150.0,0.00048214]
[1761916658893,2.63438643,110160.0,110150.0,0.00048214]
[1761916659114,2.61530013,110160.0,110150.0,0.00048214]
[1761916659325,2.17038458,110160.0,110150.0,0.02700214]
[1761916659537,0.002,110160.0,110150.0,0.63631511]
[1761916659744,0.002,110160.0,110150.0,0.74943608]
[1761916660429,0.001,110160.0,110150.0,0.74943608]
[1761916660638,2.0,110170.0,110160.0,0.12707968]
[1761916660871,2.0,110170.0,110160.0,0.15115968]
[1761916661086,2.12707633,110170.0,110160.0,0.16640968]
[1761916661324,0.12707633,110170.0,110160.0,0.12858943]
[1761916661538,0.15221633,110170.0,110160.0,0.14233787]
[1761916661745,0.49221633,110170.0,110160.0,0.14233787]
[1761916661962,0.01402586,110180.0,110170.0,0.12707633]
[1761916662189,2.0,110190.0,110180.0,0.12705751]
[1761916662405,2.0,110190.0,110180.0,0.19845696]
[1761916662627,2.0,110190.0,110180.0,0.22574145]
[1761916662857,0.14016628,110200.0,110190.0,0.12705327]
[1761916663108,0.48016628,110200.0,110190.0,0.17765327]
[1761916663330,0.35312392,110200.0,110190.0,0.17765327]
[1761916663538,0.01312392,110200.0,110190.0,0.17765327]
[1761916663752,0.48016566,110200.0,110190.0,0.17765327]
[1761916664225,0.4802138,110200.0,110190.0,0.17765327]
[1761916664444,0.35417206,110200.0,110190.0,0.17765327]
[1761916664653,0.35417206,110200.0,110190.0,0.21405974]
[1761916664654,0.01517206,110200.0,110190.0,0.21405974]
[1761916665084,0.01517206,110200.0,110190.0,0.17765327]
[1761916665501,0.1577738,110200.0,110190.0,0.02652]
[1761916665710,2.1567738,110200.0,110190.0,0.02652]
[1761916666141,2.1567738,110200.0,110190.0,0.02952]
[1761916666823,2.1798938,110200.0,110190.0,0.003]
[1761916669396,2.02973206,110200.0,110190.0,0.14617327]
[1761916669588,4.814e-05,110200.0,110190.0,0.17065327]
[1761916670243,4.814e-05,110200.0,110190.0,0.19793312]
[1761916672846,2.14364988,110200.0,110190.0,0.04639985]
[1761916673064,2.14364988,110200.0,110190.0,0.17345312]
[1761916673524,2.01660814,110200.0,110190.0,0.17345312]
[1761916674605,0.01660814,110200.0,110190.0,0.17345312]
[1761916674819,4.814e-05,110200.0,110190.0,0.19793312]
[1761916675236,4.814e-05,110200.0,110190.0,0.23043218]
[1761916675697,0.14364988,110200.0,110190.0,0.17345312]
[1761916675973,4.814e-05,110200.0,110190.0,0.19793312]
[1761916677973,0.13609289,110220.0,110200.0,0.14316174]
[1761916678188,0.13609289,110220.0,110200.0,0.15152174]
[1761916678189,2.0,110210.0,110200.0,0.15152174]
[1761916678398,2.0,110210.0,110200.0,0.16371174]
[1761916678616,2.0,110210.0,110200.0,0.21193623]
[1761916679314,2.0,110210.0,110200.0,0.23921556]
[1761916680575,2.12703021,110210.0,110200.0,0.24021556]
[1761916680778,0.15243021,110210.0,110200.0,0.05758933]
[1761916680989,2.9229162,110210.0,110200.0,0.02927933]
[1761916681352,2.9229162,110210.0,110200.0,0.02827933]
[1761916681626,2.9229162,110210.0,110200.0,0.03327933]
[1761916682037,2.9229162,110210.0,110200.0,0.006]
[1761916682241,0.77160599,110210.0,110200.0,0.006]
[1761916682461,2.8986362,110210.0,110200.0,0.006]
[1761916682663,3.2386362,110210.0,110200.0,0.001]
[1761916682867,3.2386362,110210.0,110190.0,0.16652454]
[1761916683089,0.00112,110200.0,110190.0,0.18264454]
[1761916684470,2.87552773,110200.0,110180.0,0.14832961]
[1761916684682,2.0,110190.0,110180.0,0.17280961]
[1761916684919,2.0,110190.0,110180.0,0.21670969]
[1761916685131,0.47722379,110210.0,110180.0,0.21670969]
[1761916685132,0.46703051,110210.0,110190.0,0.15153012]
[1761916685342,0.34,110210.0,110200.0,0.14316174]
[1761916685571,0.34,110210.0,110200.0,0.16764174]
[1761916685789,0.34,110210.0,110200.0,0.19711093]
[1761916686867,0.46815021,110210.0,110200.0,0.01612]
[1761916687086,3.30645521,110210.0,110200.0,0.001]
[1761916688087,3.30645521,110210.0,110200.0,0.006]
[1761916688540,2.0,110200.0,110190.0,0.12705192]
[1761916688676,2.00112,110200.0,110190.0,0.14317192]
[1761916688895,0.00112,110200.0,110190.0,0.14317192]
[1761916689096,0.00112,110200.0,110190.0,0.01612]
[1761916689097,2.12816174,110200.0,110190.0,0.01612]
[1761916689443,2.0,110190.0,110180.0,0.20009246]
[1761916689986,2.0,110190.0,110180.0,0.21621246]
[1761916691203,2.0,110190.0,110180.0,0.22121246]
[1761916691585,2.0,110190.0,110180.0,0.1603748]
[1761916691791,0.00112,110190.0,110180.0,0.1613748]
[1761916692166,2.0,110190.0,110180.0,0.1858548]
[1761916694390,2.12705327,110190.0,110180.0,0.1858548]
[1761916694603,0.12705327,110190.0,110180.0,0.1858548]
[1761916695094,0.12705327,110190.0,110180.0,0.1613748]
[1761916695371,3.71553926,110190.0,110180.0,0.006]
[1761916695626,3.31495493,110190.0,110180.0,0.006]
[1761916695885,3.33290751,110190.0,110180.0,0.006]
[1761916696130,3.37886832,110190.0,110180.0,0.006]
[1761916696373,3.35933907,110190.0,110180.0,0.005]
[1761916696871,3.33190751,110190.0,110180.0,0.005]
[1761916697115,0.4670648,110180.0,110170.0,0.13846493]
[1761916697335,0.4670648,110180.0,110170.0,0.16133493]
[1761916697550,0.34,110180.0,110170.0,0.17738493]
[1761916698426,0.34,110180.0,110170.0,0.17743307]
[1761916698880,0.4670648,110180.0,110170.0,0.17743307]
[1761916699084,0.4670648,110180.0,110170.0,0.15756307]
[1761916699292,0.4681848,110180.0,110170.0,0.03048814]
[1761916700110,2.4681848,110180.0,110170.0,0.00304814]
[1761916701836,2.4681848,110180.0,110170.0,0.03013814]
[1761916702052,2.4681848,110180.0,110170.0,0.00304814]
[1761916702273,0.34,110180.0,110170.0,0.18111447]
[1761916703162,0.4670648,110180.0,110170.0,0.18111447]
[1761916704202,0.34,110180.0,110170.0,0.18111447]
[1761916704635,0.4670648,110180.0,110170.0,0.18111447]
[1761916705086,0.34,110180.0,110170.0,0.21193457]
[1761916705297,0.33959831,110180.0,110170.0,0.21193457]
[1761916705518,2.0,110190.0,110180.0,0.12705503]
[1761916705736,0.5,110200.0,110180.0,0.16660503]
[1761916705737,2.12704244,110200.0,110180.0,0.16660503]
[1761916705960,2.0,110190.0,110180.0,0.15095503]
[1761916706171,2.0,110190.0,110180.0,0.19317858]
[1761916706405,2.0,110190.0,110180.0,0.20882858]
[1761916706824,2.0,110190.0,110180.0,0.21283835]
[1761916707036,2.87553926,110190.0,110180.0,0.004]
[1761916707468,2.87553926,110190.0,110180.0,0.005]
[1761916707875,2.12817327,110190.0,110180.0,0.001]
[1761916708295,2.12817327,110190.0,110180.0,0.002]
[1761916708918,2.12817327,110190.0,110180.0,0.1290648]
[1761916709131,0.00112,110190.0,110180.0,0.1447148]
[1761916709345,2.0,110190.0,110180.0,0.19776749]
[1761916710152,0.12705327,110190.0,110180.0,0.1686148]
[1761916710700,2.0,110190.0,110180.0,0.1686148]
[1761916711362,1.7955362,110190.0,110180.0,0.1686148]
[1761916711576,2.0,110190.0,110180.0,0.1686148]
[1761916715760,2.0,110190.0,110180.0,0.1800548]
[1761916716009,2.0,110190.0,110180.0,0.21282417]
[1761916717866,0.12705327,110190.0,110180.0,0.21282417]
[1761916718091,0.12817327,110190.0,110180.0,0.1800548]
[1761916718328,0.12817327,110190.0,110180.0,0.1561548]
[1761916718575,2.62817327,110190.0,110180.0,0.002]
[1761916718812,2.12817327,110190.0,110180.0,0.002]
[1761916719492,2.12705327,110190.0,110180.0,0.1800548]
[1761916719704,2.12705327,110190.0,110180.0,0.21282417]
[1761916720615,2.12817327,110190.0,110180.0,0.02909]
[1761916721980,2.12817327,110190.0,110180.0,0.01344]
[1761916722224,2.12817327,110190.0,110180.0,0.02909]
[1761916722430,2.61105784,110190.0,110180.0,0.02909]
[1761916724501,2.61105784,110190.0,110180.0,0.002]
[1761916724712,3.04199685,110190.0,110180.0,0.002]
[1761916729730,3.62277382,110190.0,110180.0,1e-08]
[1761916729931,3.64594152,110190.0,110180.0,1e-08]
[1761916730154,3.21363275,110190.0,110180.0,1e-08]
[1761916730345,3.20363276,110190.0,110180.0,1e-08]
[1761916730559,3.19035418,110190.0,110180.0,1e-08]
[1761916730984,2.50324708,110180.0,110170.0,4.814e-05]
[1761916731192,3.11563694,110180.0,110170.0,4.814e-05]
[1761916731425,3.1430685,110180.0,110170.0,4.814e-05]
[1761916731621,3.15730798,110180.0,110170.0,4.814e-05]
[1761916732090,3.16230798,110180.0,110170.0,4.814e-05]
[1761916732300,3.16430798,110180.0,110170.0,4.814e-05]
[1761916733108,3.17855002,110180.0,110170.0,4.814e-05]
[1761916734412,3.16161492,110180.0,110170.0,4.814e-05]
[1761916734650,3.17850586,110180.0,110170.0,4.814e-05]
[1761916734882,3.16161492,110180.0,110170.0,4.814e-05]
[1761916735115,3.14737544,110180.0,110170.0,4.814e-05]
[1761916735602,2.64686817,110180.0,110170.0,0.04117814]
[1761916735834,2.30698817,110180.0,110170.0,4.814e-05]
[1761916736054,2.70788838,110180.0,110170.0,4.814e-05]
[1761916736331,2.70900838,110180.0,110170.0,4.814e-05]
[1761916736773,3.04700838,110180.0,110170.0,4.814e-05]
[1761916737251,3.04200838,110180.0,110170.0,4.814e-05]
[1761916737607,3.04500838,110180.0,110170.0,4.814e-05]
[1761916737996,3.05624647,110180.0,110170.0,4.814e-05]
[1761916738209,3.05724647,110180.0,110170.0,4.814e-05]
[1761916739377,3.05824647,110180.0,110170.0,4.814e-05]
[1761916740394,3.05724647,110180.0,110170.0,4.814e-05]
[1761916740957,3.05824647,110180.0,110170.0,4.814e-05]
[1761916741175,2.60179346,110180.0,110170.0,4.814e-05]
[1761916741393,2.5732419,110180.0,110170.0,0.01620814]
[1761916741616,3.05612647,110180.0,110170.0,4.814e-05]
[1761916742442,2.14230289,110180.0,110170.0,0.04117814]
[1761916742645,2.48230289,110180.0,110170.0,0.04117814]
[1761916742914,2.48230289,110180.0,110170.0,0.16825447]
[1761916743128,2.341,110180.0,110170.0,0.16825447]
[1761916743366,2.4670648,110180.0,110170.0,0.16825447]
[1761916743571,2.4670648,110180.0,110170.0,0.16925447]
[1761916743783,2.34,110180.0,110170.0,0.16925447]
[1761916743990,2.4670648,110180.0,110170.0,0.04217814]
[1761916744399,2.4670648,110180.0,110170.0,0.16925447]
[1761916744639,2.34,110180.0,110170.0,0.16925447]
[1761916744847,2.4670648,110180.0,110170.0,0.04217814]
[1761916745726,2.4670648,110180.0,110170.0,0.16925447]
[1761916745944,2.4670648,110180.0,110170.0,0.04217814]
[1761916746158,2.4681848,110180.0,110170.0,0.01720814]
[1761916746369,2.4681848,110180.0,110170.0,0.00104814]
[1761916746578,2.95218937,110180.0,110170.0,0.00104814]
[1761916747016,2.95106937,110180.0,110170.0,0.00104814]
[1761916747479,3.04200838,110180.0,110170.0,0.00104814]
[1761916748414,3.04200838,110180.0,110170.0,4.814e-05]
[1761916749802,3.04300838,110180.0,110170.0,4.814e-05]
[1761916750016,3.07043994,110180.0,110170.0,4.814e-05]
[1761916750911,3.07143994,110180.0,110170.0,4.814e-05]
[1761916751157,3.07043994,110180.0,110170.0,4.814e-05]
[1761916751369,3.07143994,110180.0,110170.0,4.814e-05]
[1761916752448,2.89005262,110180.0,110170.0,4.814e-05]
[1761916753542,2.9262349,110180.0,110170.0,4.814e-05]
[1761916753762,2.94047372,110180.0,110170.0,4.814e-05]
[1761916754447,2.91304216,110180.0,110170.0,4.814e-05]
[1761916755003,2.39397531,110180.0,110170.0,4.814e-05]
[1761916755201,2.87585988,110180.0,110170.0,4.814e-05]
[1761916755711,2.87685988,110180.0,110170.0,4.814e-05]
[1761916756377,2.89010103,110180.0,110170.0,4.814e-05]
[1761916756805,2.90329144,110180.0,110170.0,4.814e-05]